Cogmind - Beta 17 @@@ ROGUE MODE // 2026.07.31 @ 17:19:13 Player: Mechanikum Result: Destroyed by S-10 Pest with Light Assault Rifle Performance ------------- Evolutions (0) 0 Regions Visited (1) 200 Robots Destroyed (6) 30 Value Destroyed (169) 169 Prototype IDs (0) 0 Alien Tech Used (0) 0 Bonus (0) 0 TOTAL SCORE: 399 Bonus ------- None Cogmind --------- Core Integrity 0/250 Matter 300/300 Energy 99/100 System Corruption 0% Temperature Cool (0) Movement Core (50) Location -10/Materials Parts ------- > --- POWER (1) -------- (None) > --- PROPULSION (2) --- (None) > --- UTILITY (2) ------ (None) > --- WEAPON (2) ------- (None) > --- INVENTORY (5) ---- Ion Engine Ion Engine Small Storage Unit Hacking Suite Hacking Suite Peak State ------------ > --- POWER ------------ Ion Engine > --- PROPULSION ------- Light Treads Light Treads > --- UTILITY ---------- Small Storage Unit > --- WEAPON ----------- Assault Rifle Light Assault Rifle > --- INVENTORY -------- Ion Engine Light Assault Rifle [Rating: 6] Favorites ----------- Power Ion Engine Engine Ion Engine Propulsion Light Treads Treads Light Treads Leg Aluminum Leg Utility Small Storage Unit Storage Small Storage Unit Weapon Light Assault Rifle Ballistic Gun Light Assault Rifle Build | -11 -10 ------- Run | Yrd Mat Slots Evolved . | . . Power . | . . Propulsion . | . . Utility . | . . Weapon . | . . Parts Attached 10 | 7 3 Power 1 | 1 . Engine 1 | 1 . Core . | . . Reactor . | . . Propulsion 3 | 2 1 Treads 2 | 2 . Leg 1 | . 1 Wheel . | . . Hover . | . . Flight . | . . Utility 3 | 1 2 Device . | . . Storage 3 | 1 2 Processor . | . . Hackware . | . . Protection . | . . Artifact . | . . Weapon 3 | 3 . Energy Gun . | . . Energy Cannon . | . . Ballistic Gun 3 | 3 . Ballistic Cannon . | . . Launcher . | . . Special Weapon . | . . Impact Weapon . | . . Slashing Weapon . | . . Piercing Weapon . | . . Special Melee Weapon . | . . Unidentified Prototypes . | . . Parts Lost 7 | 1 6 Power 1 | . 1 Propulsion 3 | 1 2 Utility . | . . Weapon 3 | . 3 Highest Loss Streak 3 | 1 3 To Critical Strikes . | . . Average Backups 3 | 1 4 Power 1 | . 1 Propulsion . | . . Utility 1 | . 2 Weapon . | . . Tool/Special . | . . Unused Backups 4 | . 4 Power 2 | . 2 Propulsion . | . . Utility 2 | . 2 Weapon . | . . Tool/Special . | . . Average Slot Usage (%) 56 | . 56 Engine 7 | . 7 Treads 7 | . 7 Leg 7 | . 7 Storage 14 | . 14 Ballistic Gun 20 | . 20 Peak Build Rating 6 | 6 6 Average Rating 4 | 5 4 On Entrance 2 | . 5 Avg Prop Armor Cover (%) 14 | . 14 Naked Turns 57 | . 57 Heaviest Build 48 | 13 48 Greatest Support 40 | 40 20 Greatest Overweight (x) 15 | . 15 Average Overweight (x) 1 | . 2 Largest Inventory Capacity 20 | 8 20 Average Capacity 12 | 7 17 Most Carried 5 | 3 5 Average Carried 3 | 1 4 Final Capacity 8 | 8 5 Final Carried 5 | 2 5 Class Distribution -------------------- 100% | Mutant Dominant Class ---------------- Mutant | -10/Materials Resources | -11 -10 ----------- Run | Yrd Mat Matter Collected 360 | 241 119 Remotely . | . . Salvage Created 119 | . 119 Parts 9 | . 9 Haulers Intercepted . | . . Recyclers Shooed . | . . Parts Field Recycled . | . . Retrieved Matter . | . . Parts Self-Destructed . | . . Prevented . | . . Parts Restored . | . . Kills | -11 -10 ------- Run | Yrd Mat Combat Hostiles Destroyed 3 | 1 2 Guns 3 | 1 2 Classes Destroyed 4 | 1 3 Operator 2 | . 2 Watcher 1 | . 1 Grunt 2 | . 2 Demolisher 1 | 1 . Best Kill Streak 2 | 1 2 Combat Bots Only 1 | 1 1 Max Kills in Single Turn 1 | 1 1 Gunslinging . | . . Exploded . | . . Melee . | . . Uniques/NPCs Destroyed . | . . Combat | -11 -10 -------- Run | Yrd Mat Hostile Shots Fired 73 | 13 60 Missed 18 | . 18 Hits 55 | 13 42 Projectile 55 | 13 42 AOE 13 | 13 . Critical Strikes 1 | . 1 Damage Taken 986 | 523 463 Core 255 | 86 169 Absorbed by Shields . | . . Core Remaining (%) 65 | 65 . Volleys Fired 41 | 6 35 Largest 2 | 2 2 Hottest 40 | 40 40 Shots Fired 57 | 12 45 Gun 57 | 12 45 Cannon . | . . Launcher . | . . Special . | . . Kinetic 57 | 12 45 Thermal . | . . Explosive . | . . Electromagnetic . | . . Robot Hit Streak 9 | 6 9 Robot Miss Streak 4 | 1 4 Penetration Max . | . . Secondary Targets . | . . Shots Hit Robots 37 | 10 27 Core Hits 12 | 3 9 Critical Kills . | . . Critical Parts Destroyed . | . . Critical Strikes . | . . Melee Attacks . | . . Impact . | . . Slashing . | . . Piercing . | . . Sneak Attacks . | . . Combat Hostiles . | . . Follow-up Attacks . | . . Damage Inflicted 376 | 103 273 Guns 367 | 103 264 Cannons . | . . Explosions . | . . Melee . | . . Ramming 9 | . 9 Kinetic 367 | 103 264 Thermal . | . . Explosive . | . . Electromagnetic . | . . Impact . | . . Slashing . | . . Piercing . | . . Highest Corruption . | . . Average Corruption . | . . Corruption Purged . | . . Corruption Blocked . | . . Overload Shots . | . . Overflow Damage . | . . Projectiles . | . . Explosions . | . . Melee . | . . Knockbacks . | . . Impact . | . . Kinetic . | . . Secondary . | . . Self-Inflicted Damage 3 | . 3 Shots . | . . Rammed 1 | . 1 Targets Rammed 2 | . 2 Kicked 1 | . 1 Crushed . | . . Highest Temperature 12 | . 12 Average Temperature 5 | . 5 Received Heat Transfer 267 | . 267 Siege Activations . | . . Martial Activations . | . . Shielding Activations . | . . Robots Disrupted . | . . Combat Hostiles . | . . Robots Corrupted . | . . Combat Hostiles . | . . Parts Fried . | . . Impact Corruptions . | . . Robots Melted . | . . Combat Hostiles . | . . Parts Melted . | . . Heat Transferred . | . . Parts Sabotaged . | . . Parts Stolen . | . . Parts Stripped . | . . Power Chain Reactions . | . . Alert | -11 -10 ------- Run | Yrd Mat Maximum Alert Level . | . . Low Security (%) 100 | 100 100 Level 1 . | . . Level 2 . | . . Level 3 . | . . Level 4 . | . . Level 5 . | . . High Security . | . . Max Security . | . . Peak Influence 75 | 20 75 Initial 9 | . 9 Average 2 | . 4 Influence Increases 172 | 20 152 Destroy 0b10 Robot/C 60 | 20 40 Destroy 0b10 Robot/NC 15 | . 15 Destroy Leader 22 | . 22 Lose Combat Pursuer 75 | . 75 Influence Decreases 103 | 6 97 Entered New Map 5 | . 5 Time Decay 98 | 6 92 Squads Dispatched 4 | . 4 Investigation 1 | . 1 Extermination . | . . Reinforcement 3 | . 3 Assault . | . . Garrison . | . . Intercept . | . . Searches Triggered . | . . Construction Impeded . | . . Haulers Reinforced . | . . Active Scanning Responses . | . . Cargo Convoy Interrupts . | . . Stealth | -11 -10 --------- Run | Yrd Mat Distress Signals 2 | . 2 Communications Jammed . | . . Distress Signals . | . . Times Spotted 23 | 3 20 Peak Tracking Total 6 | 2 6 Tactical Retreats 1 | . 1 Traps | -11 -10 ------- Run | Yrd Mat Traps Triggered 1 | . 1 Indirectly . | . . Trap Hack Attempts . | . . Triggered . | . . Disarmed . | . . Reprogrammed . | . . Reused . | . . Traps Extracted . | . . Installed . | . . Triggered . | . . Machines | -11 -10 ---------- Run | Yrd Mat Machines Disabled . | . . Max in Single Turn . | . . Machines Repaired . | . . Machines Dismantled . | . . Machines Sabotaged . | . . Overloaded Fab Kills . | . . Hacking | -11 -10 --------- Run | Yrd Mat Machines Accessed 3 | . 3 Terminals 3 | . 3 Fabricators . | . . Repair Stations . | . . Recycling Units . | . . Scanalyzers . | . . Garrison Access . | . . Total Hacks 5 | . 5 Successful 4 | . 4 Failed 1 | . 1 Catastrophic . | . . Database Lockouts . | . . Manual 3 | . 3 Terminals 5 | . 5 Fabricators . | . . Repair Stations . | . . Recycling Units . | . . Scanalyzers . | . . Garrison Access . | . . Terminal Hacks 4 | . 4 Record 1 | . 1 Alert Level 1 | . 1 Recall Reinforcements 1 | . 1 Hauler Manifests 1 | . 1 Fabricator Hacks . | . . Repair Station Hacks . | . . Recycling Unit Hacks . | . . Scanalyzer . | . . Garrison Access Hacks . | . . Unauthorized Hacks . | . . Terminals . | . . Fabricators . | . . Repair Stations . | . . Recycling Units . | . . Scanalyzers . | . . Garrison Access . | . . Data Cores Recovered . | . . Used . | . . Hacking Detections 3 | . 3 Full Trace Events . | . . Feedback Events . | . . Feedback Blocked . | . . Robot Schematics Acquired . | . . Robots Built . | . . Authchips . | . . Time . | . . Total Robot Build Rating . | . . Part Schematics Acquired . | . . Parts Built . | . . Authchips . | . . Time . | . . Total Part Build Rating . | . . Part Studies Acquired . | . . Parts Repaired . | . . Time . | . . Parts Recycled . | . . Recycled Matter . | . . Retrieved Matter . | . . Retrieved Components . | . . Parts Scanalyzed . | . . Part Schematics Acquired . | . . Parts Damaged . | . . Bothacking | -11 -10 ------------ Run | Yrd Mat Used RIF Installer . | . . Robots Hacked . | . . Non-combat . | . . Combat . | . . Robot Hacks Applied . | . . Relay Couplers Released . | . . Fabnet Peak Effective % . | . . Robots Rewired . | . . Allies Hacked . | . . Hacks Repelled . | . . Allies | -11 -10 -------- Run | Yrd Mat Total Allies . | . . Largest Group . | . . Highest-Rated Group . | . . Highest-Rated Ally . | . . Total Orders . | . . Ally Attacks . | . . Total Damage . | . . Kills . | . . Allies Corrupted . | . . Allies Melted . | . . Intel | -11 -10 ------- Run | Yrd Mat Active Infowar (turns) . | . . Robot Analysis Total . | . . Derelict Logs Recovered . | . . Drone Launches . | . . Drone Recoveries . | . . Exploration | -11 -10 ------------- Run | Yrd Mat Turns Passed 2039 | 1062 977 Spaces Moved 527 | 138 389 Core 227 | 3 224 Treads 297 | 135 162 Legs 3 | . 3 Wheels . | . . Hover . | . . Flight . | . . Fastest Speed 50 | 50 50 Average Speed 209 | 157 227 Slowest Speed 800 | 160 800 Overloaded Moves . | . . Propulsion Burnouts . | . . Robots Hopped . | . . Potential Cave-ins . | . . Cave-ins Triggered . | . . Exploration Rate (%) 35 | 8 62 Regions Visited 1 Branch Regions . Pre-discovered Areas . | . . Known Exits Taken . | . . Unknown Exits Taken 1 | 1 . Scrap Searched . | . . Spaces Dug . | . . Terrain Destroyed . | . . Melee . | . . Projectile . | . . AOE . | . . Terrain Rammed . | . . Walls Destroyed . | . . Machines Disabled . | . . Actions | -11 -10 --------- Run | Yrd Mat Total 1408 | 969 439 Wait 821 | 817 4 Move 526 | 137 389 Hop . | . . Pick Up 5 | 2 3 Fast Attach 7 | 5 2 Attach 2 | 1 1 Detach . | . . Swap 2 | 1 1 Drop 2 | . 2 Fire 41 | 6 35 Melee . | . . Ram 1 | . 1 Kick 1 | . 1 Crush . | . . Escape Stasis . | . . Rewire . | . . Trap . | . . Miscellaneous . | . . Route ------- -11/Scrapyard -10/Materials (discovered 2 exits: [*Mat] / [*Min]) History --------- Turn | Location | Event 12 | -11/Scrapyard | Discovered new exit (range 14) 1032 | -11/Scrapyard | Assembled infested the area 1063 | -11/Scrapyard | Entered Materials 1064 | -10/Materials | Build established: Mutant 1097 | -10/Materials | Discovered new exit (range 13) 1565 | -10/Materials | Core integrity fell below 50% 1602 | -10/Materials | Lost 3 parts (1p1n1w) 1982 | -10/Materials | Discovered new exit (range 8) 1994 | -10/Materials | Core integrity fell below 20% 2040 | -10/Materials | Destroyed by S-10 Pest with Light Assault Rifle Last Messages --------------- ALERT: Hostiles spotted, dispatching reinforcements to Terminal M004. W-16 Scout sends out distress signal. Kicked K-01 Serf. Aluminum Leg destroyed. Dropped Hcp. Storage Unit. Connecting with Terminal... >>Recall(Reinforcements) Establishing remote squad link... Recalled reinforcement squad CO1NUS7TCJ. Connecting with Terminal... EXIT=FOUND Lgt. Assault Rifle destroyed. Critical hit (Burn: +37). Slammed into R-06 Scavenger. T-07 Excavator is excavating. Triggered Alarm Trap. An alarm sounds. ALERT: Alarm triggered, dispatching investigation squad. Map ----- +----------------------------------------------------+ | | | | | | | | | | | | | | | | | | | | | | | | | | | | | | | | | | | | | ???????????????????#############?????????????? | | ???????????????????# ########??????? | | ???????????????????# # """ #??????? | | ???????????????????# # "Y" #??????? | | ???????????????????+ """ """ # #??????? | | ???????????????????# """ """ # #??????? | | ???????????????????# """ """ # !#??????? | | ???????????????????# @ s # #??????? | | ???????????????????#####g####s#####+###??????? | | ??????????????????????#g #??????? | | ??????????????? #??????? | | ??????????????????##+####### """ ##########? | | ???????????????????????????# """ # #? | | ???????????????????????????# """ + """ #? | | ???????????????????????????# # """ #? | | ???????????????????????????# # """ #? | | ???????????????????????????# ###### ! #? | | ???????????????????????????# ?????# """ #? | | ???????????????????????????# ?????# """ #? | | ??????????????????????????? ?????# """ #? | | ?????????????????????????? ?????# #? | | ???????????????????????????# ?????######+###? | | ???????????????????????????? ??????????# #??? | | ???????????????????????????? ??????????# #??? | | ????????????????????????????????????????# #??? | | ????????????????????????????????????????# #??? | | ????????????????????????????????????????# #??? | | ??????????????????????????????????#####?# #??? | | ??????????????????????????????????# ?# #??? | | ####??????????????????????????????# # #??? | | ??????????????????????????????# """ # #??? | | ??????????????????????????????# """ + #??? | +----------------------------------------------------+ Best States ------------- Heat Dissipation 25 Energy Generation 10 Energy Capacity 250 Matter Stores 300 Matter Capacity 300 Sight Range 16 Terrain Scan Density 10 Evasion (%) 50 Recoil Reduction 2 Item Schematics ----------------- None Robot Schematics ------------------ None Fabricated ------------ Nothing Repaired ---------- Nothing Studied --------- None Alien Tech Used ----------------- None Achievements -------------- Curiosity Killed The Cat Challenges ------------ None Game ------ Seed ShadingNeutrinoProjector Manual? 0 Play Time 00:10:39 Cumulative 6.7 hours Start 2026.07.31 @ 17:12:43 End 2026.07.31 @ 17:19:13 Sessions 1 Manual Loads 0 Difficulty Rogue Special Mode None Game No. 20 Rogue 20 Adventurer 0 Explorer 0 Win Type - Total 0 Types 0/0/0/0/0/0/0/0/0/0 Lore% 12 Gallery% 12 Achievement% 14 Wizard Run 0 Options --------- Layout 1 ASCII 0 Keyboard 0 Movement Arrows Keybinds 0 Fullscreen 2 Font 36/X11 Map View 50x40 Zoom Use 0% Tactical HUD 0 Map Filters NONE Filters NONE Steam 1 RUN: 3bc5c634-2c47-4e26-8796-a23004f0714c